[Event "*** Titled Tuesday Blitz"]
[Site "Chess.com"]
[Date "2020.11.03"]
[Round "10"]
[White "PlotnikovPavel"]
[Black "emiliochess"]
[Result "0-1"]
[WhiteElo "2414"]
[BlackElo "2256"]
[TimeControl "180+1"]
[EndTime "12:00:01 PST"]
[Termination "emiliochess won by checkmate"]

1. e4 {[%clk 0:03:00.9]} 1... c6 {[%clk 0:02:59.8]} 2. d4 {[%clk 0:03:00.6]}
2... d5 {[%clk 0:03:00.3]} 3. exd5 {[%clk 0:03:01.2]} 3... cxd5 {[%clk
0:03:01.2]} 4. Bd3 {[%clk 0:03:01.5]} 4... Nf6 {[%clk 0:03:01.2]} 5. c3 {[%clk
0:03:01.2]} 5... Bg4 {[%clk 0:03:00.8]} 6. Qb3 {[%clk 0:02:59.9]} 6... Qb6
{[%clk 0:02:59.2]} 7. Bf4 {[%clk 0:02:56.7]} 7... Qxb3 {[%clk 0:02:55.1]} 8.
axb3 {[%clk 0:02:56.5]} 8... Nc6 {[%clk 0:02:55.3]} 9. Nd2 {[%clk 0:02:56.2]}
9... e6 {[%clk 0:02:55.1]} 10. Ngf3 {[%clk 0:02:53.5]} 10... a6 {[%clk
0:02:53.6]} 11. b4 {[%clk 0:02:51.8]} 11... Rc8 {[%clk 0:02:53.6]} 12. O-O
{[%clk 0:02:49.4]} 12... Be7 {[%clk 0:02:53.4]} 13. Ra4 {[%clk 0:02:42.1]} 13...
Nh5 {[%clk 0:02:52.9]} 14. Bg3 {[%clk 0:02:33.8]} 14... Nxg3 {[%clk 0:02:52.4]}
15. hxg3 {[%clk 0:02:34]} 15... f6 {[%clk 0:02:48.5]} 16. b5 {[%clk 0:02:30.1]}
16... axb5 {[%clk 0:02:43.2]} 17. Bxb5 {[%clk 0:02:29.9]} 17... Kf7 {[%clk
0:02:38.9]} 18. Rfa1 {[%clk 0:02:18.9]} 18... Rc7 {[%clk 0:02:28.4]} 19. Nb3
{[%clk 0:01:50.9]} 19... Bf5 {[%clk 0:02:03.1]} 20. Nbd2 {[%clk 0:01:32.9]}
20... Bc2 {[%clk 0:02:00.9]} 21. Ra8 {[%clk 0:01:22.1]} 21... Rxa8 {[%clk
0:01:49.1]} 22. Rxa8 {[%clk 0:01:22.1]} 22... h6 {[%clk 0:01:46.8]} 23. Nf1
{[%clk 0:01:18.3]} 23... Bd6 {[%clk 0:01:36.1]} 24. Ne3 {[%clk 0:01:13.7]} 24...
Bh7 {[%clk 0:01:35.2]} 25. Kf1 {[%clk 0:01:09.2]} 25... Re7 {[%clk 0:01:28.5]}
26. Ba4 {[%clk 0:01:02.8]} 26... Re8 {[%clk 0:01:26.3]} 27. Rxe8 {[%clk
0:00:54.9]} 27... Kxe8 {[%clk 0:01:27.2]} 28. Ke2 {[%clk 0:00:49.6]} 28... Kd8
{[%clk 0:01:24.6]} 29. Kd2 {[%clk 0:00:48.6]} 29... Kc7 {[%clk 0:01:18.1]} 30.
Nh4 {[%clk 0:00:38.5]} 30... Ne7 {[%clk 0:01:15.1]} 31. Bb3 {[%clk 0:00:28.6]}
31... Bg8 {[%clk 0:01:13.1]} 32. Bc2 {[%clk 0:00:24]} 32... b5 {[%clk
0:01:12.4]} 33. Ng6 {[%clk 0:00:20.3]} 33... Nxg6 {[%clk 0:01:08]} 34. Bxg6
{[%clk 0:00:21.2]} 34... Kc6 {[%clk 0:01:07.8]} 35. b4 {[%clk 0:00:20.6]} 35...
e5 {[%clk 0:01:05.9]} 36. Be8+ {[%clk 0:00:20.5]} 36... Kb6 {[%clk 0:01:03.5]}
37. Nf5 {[%clk 0:00:20.2]} 37... Bf8 {[%clk 0:01:02.4]} 38. f4 {[%clk
0:00:16.1]} 38... Be6 {[%clk 0:00:55.4]} 39. Ne3 {[%clk 0:00:11.7]} 39... exd4
{[%clk 0:00:54.6]} 40. cxd4 {[%clk 0:00:11.5]} 40... Bxb4+ {[%clk 0:00:54.8]}
41. Ke2 {[%clk 0:00:08.8]} 41... Bd6 {[%clk 0:00:50.5]} 42. f5 {[%clk
0:00:08.3]} 42... Bg8 {[%clk 0:00:45.7]} 43. g4 {[%clk 0:00:08.3]} 43... b4
{[%clk 0:00:45.7]} 44. Kd3 {[%clk 0:00:08.2]} 44... Bf4 {[%clk 0:00:30]} 45. Nc2
{[%clk 0:00:05.2]} 45... b3 {[%clk 0:00:29.1]} 46. Na3 {[%clk 0:00:04.6]} 46...
Ka5 {[%clk 0:00:24.1]} 47. Nb1 {[%clk 0:00:03]} 47... Kb4 {[%clk 0:00:22.3]} 48.
Bd7 {[%clk 0:00:02.2]} 48... Bf7 {[%clk 0:00:20.8]} 49. Bc8 {[%clk 0:00:01.7]}
49... Be8 {[%clk 0:00:20.6]} 50. Be6 {[%clk 0:00:01.7]} 50... Bb5# {[%clk
0:00:20.9]} 0-1

[Event "*** Titled Tuesday Blitz"]
[Site "Chess.com"]
[Date "2020.11.03"]
[Round "10"]
[White "Duhless"]
[Black "ShimanovAlex"]
[Result "1-0"]
[WhiteElo "3006"]
[BlackElo "2832"]
[TimeControl "180+1"]
[EndTime "12:00:02 PST"]
[Termination "Duhless won by resignation"]

1. d4 {[%clk 0:03:00.9]} 1... Nf6 {[%clk 0:02:58.9]} 2. Nf3 {[%clk 0:03:01.1]}
2... g6 {[%clk 0:02:58.9]} 3. Bg5 {[%clk 0:02:58.9]} 3... Bg7 {[%clk 0:02:59]}
4. Nbd2 {[%clk 0:02:59.6]} 4... O-O {[%clk 0:02:56.7]} 5. e3 {[%clk 0:03:00.1]}
5... d6 {[%clk 0:02:57.4]} 6. Bc4 {[%clk 0:02:59.8]} 6... b6 {[%clk 0:02:54.3]}
7. a4 {[%clk 0:02:56.6]} 7... a6 {[%clk 0:02:52.6]} 8. e4 {[%clk 0:02:55.9]}
8... Bb7 {[%clk 0:02:51.7]} 9. Qe2 {[%clk 0:02:55.3]} 9... h6 {[%clk 0:02:23.9]}
10. Bxf6 {[%clk 0:02:39.9]} 10... exf6 {[%clk 0:02:20.2]} 11. O-O {[%clk
0:02:39.4]} 11... Nd7 {[%clk 0:02:19.4]} 12. Qd3 {[%clk 0:02:35.8]} 12... Kh7
{[%clk 0:02:11.7]} 13. Rfe1 {[%clk 0:02:34.7]} 13... h5 {[%clk 0:02:10.4]} 14.
Nf1 {[%clk 0:02:31.8]} 14... Bh6 {[%clk 0:02:09.9]} 15. Rad1 {[%clk 0:02:30.5]}
15... Kg7 {[%clk 0:02:07.1]} 16. c3 {[%clk 0:02:28.7]} 16... Re8 {[%clk
0:02:03.4]} 17. Ng3 {[%clk 0:02:24.4]} 17... Nf8 {[%clk 0:01:53.5]} 18. Nh4
{[%clk 0:02:10.8]} 18... Bg5 {[%clk 0:01:40.2]} 19. Nhf5+ {[%clk 0:01:59.1]}
19... Kg8 {[%clk 0:01:20.4]} 20. h4 {[%clk 0:01:54.5]} 20... Bf4 {[%clk
0:01:19.9]} 21. Nxh5 {[%clk 0:01:47]} 21... gxh5 {[%clk 0:01:15.8]} 22. Qf3
{[%clk 0:01:46.6]} 22... Ng6 {[%clk 0:01:11.6]} 23. g3 {[%clk 0:01:28.8]} 23...
Qd7 {[%clk 0:00:59.2]} 24. Qxh5 {[%clk 0:01:22.2]} 24... d5 {[%clk 0:00:58.6]}
25. gxf4 {[%clk 0:01:16.3]} 25... Rxe4 {[%clk 0:00:38.7]} 26. Rxe4 {[%clk
0:01:14.2]} 26... dxc4 {[%clk 0:00:38.6]} 27. Re7 {[%clk 0:00:27.1]} 27... Qd5
{[%clk 0:00:18.8]} 28. Nh6+ {[%clk 0:00:26.5]} 28... Kf8 {[%clk 0:00:02.9]} 29.
Rxf7+ {[%clk 0:00:24.2]} 29... Ke8 {[%clk 0:00:03.2]} 30. Re1+ {[%clk
0:00:23.4]} 30... Kd8 {[%clk 0:00:03.8]} 31. Qxd5+ {[%clk 0:00:21.6]} 31... Bxd5
{[%clk 0:00:04.7]} 32. Rxf6 {[%clk 0:00:22]} 32... Nxh4 {[%clk 0:00:02.6]} 33.
Rf8+ {[%clk 0:00:13.8]} 33... Kd7 {[%clk 0:00:02.9]} 34. Rxa8 {[%clk 0:00:14.3]}
34... Bxa8 {[%clk 0:00:03.3]} 35. Re3 {[%clk 0:00:10.4]} 35... Bf3 {[%clk
0:00:03.9]} 36. Nf5 {[%clk 0:00:08.9]} 36... Nxf5 {[%clk 0:00:03.8]} 37. Rxf3
{[%clk 0:00:09.2]} 37... b5 {[%clk 0:00:04.3]} 38. axb5 {[%clk 0:00:08.8]} 38...
axb5 {[%clk 0:00:05.2]} 39. Rh3 {[%clk 0:00:09.4]} 39... Nd6 {[%clk 0:00:04.8]}
40. Kg2 {[%clk 0:00:09.3]} 40... c6 {[%clk 0:00:05.7]} 41. Kf3 {[%clk
0:00:09.4]} 41... b4 {[%clk 0:00:06.6]} 42. Rh7+ {[%clk 0:00:08.9]} 42... Ke6
{[%clk 0:00:06.3]} 43. Rh6+ {[%clk 0:00:09.1]} 43... Kd5 {[%clk 0:00:06.6]} 44.
Rxd6+ {[%clk 0:00:09.7]} 44... Kxd6 {[%clk 0:00:07.5]} 1-0

[Event "*** Titled Tuesday Blitz"]
[Site "Chess.com"]
[Date "2020.11.03"]
[Round "10"]
[White "nitpicker"]
[Black "ural58"]
[Result "0-1"]
[WhiteElo "2154"]
[BlackElo "2359"]
[TimeControl "180+1"]
[EndTime "12:00:02 PST"]
[Termination "ural58 won on time"]

1. d4 {[%clk 0:02:11.9]} 1... d5 {[%clk 0:02:59.2]} 2. c4 {[%clk 0:02:11.1]}
2... e5 {[%clk 0:02:59.1]} 3. dxe5 {[%clk 0:02:10.2]} 3... d4 {[%clk 0:02:59.2]}
4. Nf3 {[%clk 0:02:10.6]} 4... Nc6 {[%clk 0:02:59.3]} 5. Nbd2 {[%clk 0:02:10.4]}
5... a5 {[%clk 0:02:58.3]} 6. g3 {[%clk 0:02:07.4]} 6... Bf5 {[%clk 0:02:53.2]}
7. a3 {[%clk 0:02:04.9]} 7... a4 {[%clk 0:02:51.8]} 8. Bg2 {[%clk 0:02:02.1]}
8... Qd7 {[%clk 0:02:51.6]} 9. O-O {[%clk 0:01:55.5]} 9... Bh3 {[%clk
0:02:44.8]} 10. Ne4 {[%clk 0:01:54.9]} 10... Bxg2 {[%clk 0:02:43.5]} 11. Kxg2
{[%clk 0:01:55.5]} 11... h6 {[%clk 0:02:42.4]} 12. e3 {[%clk 0:01:47.6]} 12...
Qg4 {[%clk 0:02:34.5]} 13. Qd3 {[%clk 0:01:29.9]} 13... Qxf3+ {[%clk 0:02:29]}
14. Kxf3 {[%clk 0:01:28]} 14... Nxe5+ {[%clk 0:02:29.9]} 15. Ke2 {[%clk
0:01:28.6]} 15... Nxd3 {[%clk 0:02:30.1]} 16. Kxd3 {[%clk 0:01:29.5]} 16... dxe3
{[%clk 0:02:29.9]} 17. Bxe3 {[%clk 0:01:28.8]} 17... O-O-O+ {[%clk 0:02:30.8]}
18. Ke2 {[%clk 0:01:28.4]} 18... Ne7 {[%clk 0:01:52.1]} 19. Nc5 {[%clk
0:01:24.6]} 19... Nf5 {[%clk 0:01:49.2]} 20. Nxa4 {[%clk 0:01:23.7]} 20... Be7
{[%clk 0:01:36.7]} 21. Rfd1 {[%clk 0:01:09.4]} 21... Rde8 {[%clk 0:01:32.9]} 22.
Kf3 {[%clk 0:01:00.5]} 22... Nxe3 {[%clk 0:01:32.2]} 23. fxe3 {[%clk 0:01:01.1]}
23... Bf6 {[%clk 0:01:30]} 24. Rac1 {[%clk 0:00:56.5]} 24... Re5 {[%clk
0:01:25.6]} 25. Rd5 {[%clk 0:00:48.3]} 25... Re7 {[%clk 0:01:08.8]} 26. b4
{[%clk 0:00:40.5]} 26... Rhe8 {[%clk 0:01:08]} 27. Rd3 {[%clk 0:00:39]} 27...
Re5 {[%clk 0:00:57.1]} 28. Rcd1 {[%clk 0:00:33.9]} 28... Rf5+ {[%clk 0:00:55.8]}
29. Ke2 {[%clk 0:00:31.8]} 29... h5 {[%clk 0:00:45.2]} 30. Rf1 {[%clk
0:00:26.4]} 30... Rfe5 {[%clk 0:00:42.5]} 31. Nc3 {[%clk 0:00:20]} 31... h4
{[%clk 0:00:39.3]} 32. Nd5 {[%clk 0:00:18.6]} 32... Bd8 {[%clk 0:00:31.9]} 33.
Rxf7 {[%clk 0:00:17]} 33... c6 {[%clk 0:00:32.5]} 34. Nf4 {[%clk 0:00:14.4]}
34... hxg3 {[%clk 0:00:31.5]} 35. hxg3 {[%clk 0:00:13.8]} 35... Rg5 {[%clk
0:00:31.1]} 36. Kf2 {[%clk 0:00:12.5]} 36... Rge5 {[%clk 0:00:20.6]} 37. Rdd7
{[%clk 0:00:12.1]} 37... Rxe3 {[%clk 0:00:19.5]} 38. Rxb7 {[%clk 0:00:11.7]}
38... Rxa3 {[%clk 0:00:18.8]} 39. Ra7 {[%clk 0:00:10.2]} 39... Rxa7 {[%clk
0:00:18.3]} 40. Rxa7 {[%clk 0:00:10.1]} 40... Re4 {[%clk 0:00:19]} 41. Rxg7
{[%clk 0:00:07.7]} 41... Rxc4 {[%clk 0:00:18.6]} 42. Nd3 {[%clk 0:00:07.5]}
42... Bb6+ {[%clk 0:00:16.7]} 43. Kf3 {[%clk 0:00:07.1]} 43... Rd4 {[%clk
0:00:16.9]} 44. Ke2 {[%clk 0:00:06]} 44... Re4+ {[%clk 0:00:17.1]} 45. Kd2
{[%clk 0:00:06.4]} 45... Be3+ {[%clk 0:00:15.9]} 46. Kc3 {[%clk 0:00:06.1]}
46... Bd4+ {[%clk 0:00:16]} 47. Kd2 {[%clk 0:00:05.5]} 47... Bxg7 {[%clk
0:00:16.9]} 0-1

[Event "*** Titled Tuesday Blitz"]
[Site "Chess.com"]
[Date "2020.11.03"]
[Round "10"]
[White "tylityli"]
[Black "dpopadic"]
[Result "0-1"]
[WhiteElo "2275"]
[BlackElo "2404"]
[TimeControl "180+1"]
[EndTime "12:00:03 PST"]
[Termination "dpopadic won on time"]

1. d4 {[%clk 0:03:00.9]} 1... Nf6 {[%clk 0:02:59.7]} 2. c4 {[%clk 0:03:00.3]}
2... g6 {[%clk 0:02:59.4]} 3. Nc3 {[%clk 0:03:00.1]} 3... Bg7 {[%clk 0:02:59.5]}
4. e4 {[%clk 0:02:58.4]} 4... d6 {[%clk 0:02:59.4]} 5. Nge2 {[%clk 0:02:56.9]}
5... O-O {[%clk 0:02:59.3]} 6. Ng3 {[%clk 0:02:54.7]} 6... e5 {[%clk 0:02:57]}
7. d5 {[%clk 0:02:54.2]} 7... a5 {[%clk 0:02:56.5]} 8. Be2 {[%clk 0:02:53.9]}
8... c6 {[%clk 0:02:49.2]} 9. O-O {[%clk 0:02:52.9]} 9... cxd5 {[%clk
0:02:49.1]} 10. cxd5 {[%clk 0:02:51.7]} 10... Nbd7 {[%clk 0:02:48.6]} 11. Be3
{[%clk 0:02:50.3]} 11... b6 {[%clk 0:02:48.6]} 12. Bb5 {[%clk 0:02:48.1]} 12...
Nc5 {[%clk 0:02:47.4]} 13. Rc1 {[%clk 0:02:43.8]} 13... Bd7 {[%clk 0:02:37.3]}
14. f3 {[%clk 0:02:40.8]} 14... Bxb5 {[%clk 0:02:32.8]} 15. Nxb5 {[%clk
0:02:40.3]} 15... Qd7 {[%clk 0:02:32.9]} 16. a4 {[%clk 0:02:36.4]} 16... Rfc8
{[%clk 0:02:29.7]} 17. b3 {[%clk 0:02:32]} 17... Ne8 {[%clk 0:02:24.8]} 18. Rc3
{[%clk 0:02:29]} 18... Nc7 {[%clk 0:02:16.5]} 19. Nxc7 {[%clk 0:02:14.7]} 19...
Rxc7 {[%clk 0:02:14.9]} 20. Qe2 {[%clk 0:02:14]} 20... Rac8 {[%clk 0:02:13.2]}
21. Rfc1 {[%clk 0:02:13.5]} 21... h5 {[%clk 0:02:06.8]} 22. Qf2 {[%clk
0:02:02.2]} 22... Kh7 {[%clk 0:02:04.5]} 23. Qd2 {[%clk 0:01:58.2]} 23... Bf6
{[%clk 0:01:58.3]} 24. Ne2 {[%clk 0:01:50.3]} 24... Bg7 {[%clk 0:01:49]} 25.
R1c2 {[%clk 0:01:31.9]} 25... Nxb3 {[%clk 0:01:23.8]} 26. Rxc7 {[%clk
0:01:27.7]} 26... Rxc7 {[%clk 0:01:23.9]} 27. Rxc7 {[%clk 0:01:16.2]} 27... Qxc7
{[%clk 0:01:23.7]} 28. Qb2 {[%clk 0:01:11.1]} 28... Nc5 {[%clk 0:01:21.8]} 29.
Qb5 {[%clk 0:01:08.6]} 29... Bh6 {[%clk 0:01:17.8]} 30. Bxh6 {[%clk 0:00:58.8]}
30... Kxh6 {[%clk 0:01:17]} 31. Qc6 {[%clk 0:00:58.3]} 31... Qd8 {[%clk
0:01:06]} 32. Nc3 {[%clk 0:00:56.8]} 32... Qg5 {[%clk 0:01:00.1]} 33. h3 {[%clk
0:00:20.1]} 33... Qe3+ {[%clk 0:00:58.1]} 34. Kh2 {[%clk 0:00:19.5]} 34... Qxc3
{[%clk 0:00:57.9]} 35. Qxd6 {[%clk 0:00:18.5]} 35... Kg7 {[%clk 0:00:54.1]} 36.
Qxb6 {[%clk 0:00:17]} 36... Nxa4 {[%clk 0:00:53.9]} 37. Qd8 {[%clk 0:00:13.5]}
37... Nc5 {[%clk 0:00:48]} 38. d6 {[%clk 0:00:12.8]} 38... a4 {[%clk 0:00:44.3]}
39. Qc7 {[%clk 0:00:11.8]} 39... Qd4 {[%clk 0:00:43.6]} 40. Qb6 {[%clk
0:00:05.8]} 40... a3 {[%clk 0:00:38.7]} 41. Qa5 {[%clk 0:00:04.9]} 41... Qxd6
{[%clk 0:00:36.3]} 42. Qxa3 {[%clk 0:00:04.5]} 42... Qc7 {[%clk 0:00:33.9]} 43.
Qc3 {[%clk 0:00:03.3]} 43... Ne6 {[%clk 0:00:32.6]} 44. Qe3 {[%clk 0:00:01.7]}
44... Nf4 {[%clk 0:00:32]} 45. Qd2 {[%clk 0:00:01.9]} 45... Qc5 {[%clk
0:00:28.3]} 46. g3 {[%clk 0:00:01.4]} 46... Ne6 {[%clk 0:00:25.7]} 47. f4 {[%clk
0:00:01.7]} 47... Qd4 {[%clk 0:00:23.2]} 0-1

[Event "*** Titled Tuesday Blitz"]
[Site "Chess.com"]
[Date "2020.11.03"]
[Round "10"]
[White "profofchess"]
[Black "juancruzarias"]
[Result "0-1"]
[WhiteElo "2388"]
[BlackElo "2551"]
[TimeControl "180+1"]
[EndTime "12:00:04 PST"]
[Termination "juancruzarias won on time"]

1. e4 {[%clk 0:03:00.9]} 1... c5 {[%clk 0:02:45.9]} 2. Nf3 {[%clk 0:03:00.7]}
2... d6 {[%clk 0:02:45.5]} 3. c3 {[%clk 0:03:00.9]} 3... Nf6 {[%clk 0:02:39.8]}
4. Bc4 {[%clk 0:03:00.8]} 4... e6 {[%clk 0:02:34.3]} 5. Qe2 {[%clk 0:03:00.6]}
5... Be7 {[%clk 0:02:33.9]} 6. Bb3 {[%clk 0:02:58.4]} 6... O-O {[%clk
0:02:33.8]} 7. O-O {[%clk 0:02:58.5]} 7... d5 {[%clk 0:02:33.1]} 8. e5 {[%clk
0:02:57.6]} 8... Nfd7 {[%clk 0:02:33.4]} 9. d4 {[%clk 0:02:57.2]} 9... b6 {[%clk
0:02:32.7]} 10. Re1 {[%clk 0:02:55.5]} 10... Ba6 {[%clk 0:02:32.4]} 11. Qe3
{[%clk 0:02:52.5]} 11... Nc6 {[%clk 0:02:32.8]} 12. Qf4 {[%clk 0:02:26.7]} 12...
Rc8 {[%clk 0:02:28.6]} 13. Qg4 {[%clk 0:02:21]} 13... Re8 {[%clk 0:02:28.6]} 14.
Bh6 {[%clk 0:02:07.1]} 14... Bf8 {[%clk 0:02:28.6]} 15. Nbd2 {[%clk 0:01:17.5]}
15... Ne7 {[%clk 0:02:28.1]} 16. Rac1 {[%clk 0:01:07.2]} 16... cxd4 {[%clk
0:02:28.1]} 17. cxd4 {[%clk 0:01:07.5]} 17... Bd3 {[%clk 0:02:27.2]} 18. Bg5
{[%clk 0:01:04.1]} 18... Rxc1 {[%clk 0:02:23.9]} 19. Rxc1 {[%clk 0:01:03.7]}
19... Bf5 {[%clk 0:02:23.1]} 20. Qg3 {[%clk 0:01:02.1]} 20... Qb8 {[%clk
0:02:16.4]} 21. Nf1 {[%clk 0:00:57.2]} 21... Rc8 {[%clk 0:02:15.3]} 22. Nh4
{[%clk 0:00:51.1]} 22... Rxc1 {[%clk 0:02:13.8]} 23. Bxc1 {[%clk 0:00:50.7]}
23... Qc8 {[%clk 0:02:01]} 24. Bg5 {[%clk 0:00:50.1]} 24... Bc2 {[%clk
0:01:56.8]} 25. h3 {[%clk 0:00:34.1]} 25... Bxb3 {[%clk 0:01:55.9]} 26. Qxb3
{[%clk 0:00:34.3]} 26... Qc4 {[%clk 0:01:50.7]} 27. Qxc4 {[%clk 0:00:32.7]}
27... dxc4 {[%clk 0:01:51.6]} 28. Nd2 {[%clk 0:00:30.1]} 28... b5 {[%clk
0:01:51.6]} 29. Ne4 {[%clk 0:00:30]} 29... Nd5 {[%clk 0:01:49.4]} 30. Nf3 {[%clk
0:00:26.1]} 30... f6 {[%clk 0:01:46.3]} 31. exf6 {[%clk 0:00:25.5]} 31... gxf6
{[%clk 0:01:47.2]} 32. Bd2 {[%clk 0:00:24.6]} 32... Kf7 {[%clk 0:01:47.2]} 33.
Ba5 {[%clk 0:00:21.7]} 33... Be7 {[%clk 0:01:45.8]} 34. g3 {[%clk 0:00:21]}
34... h6 {[%clk 0:01:46.1]} 35. Kf1 {[%clk 0:00:17.3]} 35... f5 {[%clk
0:01:46.5]} 36. Nc3 {[%clk 0:00:16.3]} 36... Nxc3 {[%clk 0:01:42.3]} 37. bxc3
{[%clk 0:00:16.1]} 37... Bd6 {[%clk 0:01:42.7]} 38. Ke2 {[%clk 0:00:14.5]} 38...
Nf6 {[%clk 0:01:43.1]} 39. Bb4 {[%clk 0:00:11.6]} 39... Bxb4 {[%clk 0:01:42.4]}
40. cxb4 {[%clk 0:00:12.5]} 40... Nd5 {[%clk 0:01:41.3]} 41. Ne5+ {[%clk
0:00:12.7]} 41... Ke8 {[%clk 0:01:40.4]} 42. a3 {[%clk 0:00:13.6]} 42... Nc3+
{[%clk 0:01:33.2]} 43. Kd2 {[%clk 0:00:12.3]} 43... Ne4+ {[%clk 0:01:30.1]} 44.
Ke3 {[%clk 0:00:11.9]} 44... Nc3 {[%clk 0:01:25.8]} 45. Kd2 {[%clk 0:00:10.6]}
45... Nd5 {[%clk 0:01:24.2]} 46. h4 {[%clk 0:00:09.3]} 46... h5 {[%clk
0:01:21.4]} 47. f3 {[%clk 0:00:08.6]} 47... a6 {[%clk 0:01:16.2]} 48. g4 {[%clk
0:00:08.4]} 48... fxg4 {[%clk 0:01:15.9]} 49. fxg4 {[%clk 0:00:09.3]} 49... hxg4
{[%clk 0:01:16.1]} 50. Nxg4 {[%clk 0:00:09.6]} 50... Kf7 {[%clk 0:01:09.2]} 51.
Ne5+ {[%clk 0:00:07.6]} 51... Kf6 {[%clk 0:01:09.5]} 52. Nd7+ {[%clk 0:00:06.6]}
52... Kf5 {[%clk 0:01:07.8]} 53. Nc5 {[%clk 0:00:07.5]} 53... Nc7 {[%clk
0:01:08.1]} 54. a4 {[%clk 0:00:06]} 54... Kg4 {[%clk 0:01:07]} 55. Ke3 {[%clk
0:00:04.4]} 55... Kxh4 {[%clk 0:01:06.7]} 56. a5 {[%clk 0:00:02.9]} 56... Kg5
{[%clk 0:01:01.8]} 57. Ke4 {[%clk 0:00:03.2]} 57... Kf6 {[%clk 0:01:01.3]} 58.
Nd7+ {[%clk 0:00:02.7]} 58... Ke7 {[%clk 0:01:01.4]} 59. Nc5 {[%clk 0:00:03.6]}
59... Kd6 {[%clk 0:01:01.7]} 60. Nb7+ {[%clk 0:00:03.7]} 60... Kc6 {[%clk
0:01:01.4]} 61. Nc5 {[%clk 0:00:04.6]} 61... Kd6 {[%clk 0:00:58.6]} 62. Nb7+
{[%clk 0:00:04.8]} 62... Ke7 {[%clk 0:00:58.5]} 63. Nc5 {[%clk 0:00:05.7]} 63...
Kf7 {[%clk 0:00:54.8]} 64. Nb7 {[%clk 0:00:05.9]} 64... Nd5 {[%clk 0:00:54.3]}
0-1

[Event "*** Titled Tuesday Blitz"]
[Site "Chess.com"]
[Date "2020.11.03"]
[Round "10"]
[White "Fy_Rakotomaharo"]
[Black "Chessdreamer2020"]
[Result "1-0"]
[WhiteElo "2634"]
[BlackElo "2508"]
[TimeControl "180+1"]
[EndTime "12:00:06 PST"]
[Termination "Fy_Rakotomaharo won on time"]

1. c4 {[%clk 0:03:00.9]} 1... d6 {[%clk 0:02:59.6]} 2. d4 {[%clk 0:02:58.2]}
2... e5 {[%clk 0:02:57.8]} 3. Nf3 {[%clk 0:02:57.2]} 3... e4 {[%clk 0:02:58]} 4.
Ng5 {[%clk 0:02:56.3]} 4... f5 {[%clk 0:02:58.6]} 5. g3 {[%clk 0:02:52.2]} 5...
Be7 {[%clk 0:02:59.1]} 6. h4 {[%clk 0:02:51.4]} 6... Nf6 {[%clk 0:02:59.2]} 7.
Nc3 {[%clk 0:02:51.1]} 7... O-O {[%clk 0:02:59.4]} 8. Nh3 {[%clk 0:02:46.7]}
8... c6 {[%clk 0:02:59.3]} 9. Nf4 {[%clk 0:02:47]} 9... a6 {[%clk 0:02:58.4]}
10. Bh3 {[%clk 0:02:46.1]} 10... b5 {[%clk 0:02:55.4]} 11. b3 {[%clk 0:02:34.1]}
11... b4 {[%clk 0:02:54.8]} 12. Na4 {[%clk 0:02:32.9]} 12... d5 {[%clk
0:02:55.2]} 13. O-O {[%clk 0:02:29.8]} 13... a5 {[%clk 0:02:49.5]} 14. c5 {[%clk
0:02:23.4]} 14... Na6 {[%clk 0:02:39.8]} 15. a3 {[%clk 0:02:13.9]} 15... Rb8
{[%clk 0:02:17.3]} 16. Bd2 {[%clk 0:02:09.9]} 16... Ng4 {[%clk 0:02:12.1]} 17.
axb4 {[%clk 0:01:49.1]} 17... Nxb4 {[%clk 0:02:01.1]} 18. Nb6 {[%clk 0:01:48.8]}
18... Rxb6 {[%clk 0:02:00.9]} 19. cxb6 {[%clk 0:01:48.5]} 19... Qxb6 {[%clk
0:02:01.5]} 20. e3 {[%clk 0:01:44.3]} 20... Ba6 {[%clk 0:02:00.8]} 21. Bxg4
{[%clk 0:01:36.8]} 21... Bxf1 {[%clk 0:01:52.7]} 22. Kxf1 {[%clk 0:01:37.7]}
22... fxg4 {[%clk 0:01:52.1]} 23. Qxg4 {[%clk 0:01:38.3]} 23... Bf6 {[%clk
0:01:30.8]} 24. Kg2 {[%clk 0:01:29.9]} 24... Nd3 {[%clk 0:01:13.3]} 25. Nxd3
{[%clk 0:01:15.3]} 25... exd3 {[%clk 0:01:12.7]} 26. Rxa5 {[%clk 0:01:11]} 26...
Qxb3 {[%clk 0:01:12.5]} 27. Qe6+ {[%clk 0:01:09.7]} 27... Kh8 {[%clk 0:01:12.6]}
28. Qxc6 {[%clk 0:01:08.8]} 28... Qd1 {[%clk 0:00:59]} 29. Ra8 {[%clk
0:00:59.8]} 29... Be7 {[%clk 0:00:54]} 30. Rxf8+ {[%clk 0:00:58.1]} 30... Bxf8
{[%clk 0:00:54.1]} 31. Qe8 {[%clk 0:00:57.4]} 31... Kg8 {[%clk 0:00:53.1]} 32.
Qe6+ {[%clk 0:00:54.7]} 32... Kh8 {[%clk 0:00:52.8]} 33. Qf7 {[%clk 0:00:55.3]}
33... h6 {[%clk 0:00:20.6]} 34. Qxf8+ {[%clk 0:00:54.8]} 34... Kh7 {[%clk
0:00:21.5]} 35. Qf5+ {[%clk 0:00:50.8]} 35... Kh8 {[%clk 0:00:21.5]} 36. Qxd3
{[%clk 0:00:51.3]} 36... Qg4 {[%clk 0:00:18.8]} 37. f3 {[%clk 0:00:50.2]} 37...
Qc8 {[%clk 0:00:18]} 38. e4 {[%clk 0:00:50.3]} 38... Qb7 {[%clk 0:00:17.4]} 39.
e5 {[%clk 0:00:49.4]} 39... Qf7 {[%clk 0:00:16.6]} 40. f4 {[%clk 0:00:49]} 40...
Qa7 {[%clk 0:00:15.5]} 41. f5 {[%clk 0:00:48.9]} 41... Qe7 {[%clk 0:00:14.8]}
42. Qf3 {[%clk 0:00:45.7]} 42... Qb7 {[%clk 0:00:13.7]} 43. f6 {[%clk
0:00:44.8]} 43... Qb2 {[%clk 0:00:13.5]} 44. fxg7+ {[%clk 0:00:44.9]} 44... Kxg7
{[%clk 0:00:13.9]} 45. Qf6+ {[%clk 0:00:44.8]} 45... Kg8 {[%clk 0:00:13.5]} 46.
Qg6+ {[%clk 0:00:42.5]} 46... Kf8 {[%clk 0:00:12.2]} 47. Qxh6+ {[%clk
0:00:43.1]} 47... Ke8 {[%clk 0:00:12.6]} 48. Qf4 {[%clk 0:00:40.4]} 48... Qc2
{[%clk 0:00:11.1]} 49. h5 {[%clk 0:00:39.9]} 49... Qd3 {[%clk 0:00:10.4]} 50.
Kh3 {[%clk 0:00:36.1]} 50... Qb1 {[%clk 0:00:06.5]} 51. Kh4 {[%clk 0:00:34.8]}
51... Qh1+ {[%clk 0:00:05.8]} 52. Kg5 {[%clk 0:00:35.3]} 52... Qb1 {[%clk
0:00:01.3]} 53. e6 {[%clk 0:00:33.6]} 1-0